fUSD/lending_fUSD_20260208
["ID","MTS","AMOUNT","RATE_DAILY","PERIOD"]
[404762136,1770515438044,-473.06290255,0.000158,2]
[404762142,1770515440282,-2428.62817981,0.000158,2]
[404762143,1770515440292,-3500000.0,0.000158,2]
[404762144,1770515440301,-2500.0,0.000158,2]
[404762145,1770515440310,-151.0,0.0001589,2]
[404762146,1770515440319,-151.0,0.0001589,2]
[404762147,1770515440328,-151.0,0.0001589,2]
[404762148,1770515440337,-152.15259723,0.0001589,2]
[404762149,1770515440347,-500.0,0.00015899,2]
[404762150,1770515440356,-500.0,0.00015899,2]
[404762151,1770515440369,-500.0,0.00015899,2]
[404762152,1770515440378,-182.25822223,0.00015899,2]
[404762153,1770515440386,-159.12337747,0.000159,2]
[404762154,1770515440394,-2384.0988,0.000159,2]
[404762155,1770515440402,-45379.6293,0.000159,2]
[404762156,1770515440411,-193.12051925,0.00015921,2]
[404762157,1770515440418,-500.0,0.00015999,2]
[404762158,1770515440427,-500.0,0.00015999,2]
[404762159,1770515440434,-536.27696157,0.00015999,2]
[404762160,1770515440442,-500.0,0.00015999,2]
[404762161,1770515440450,-500.0,0.00015999,2]
[404762162,1770515440458,-406.09210056,0.00015999,2]
[404762163,1770515440466,-500.0,0.00015999,2]
[404762164,1770515440474,-274.83780956,0.00015999,2]
[404762165,1770515440483,-515.12791948,0.00015999,2]
[404762166,1770515440491,-252.82671144,0.0001691,2]
[404762167,1770515440500,-500.0,0.00017808,2]
[404762168,1770515440509,-500.0,0.00017808,2]
[404762169,1770515440518,-500.0,0.00017808,2]
[404762170,1770515440527,-595.58477353,0.00017808,2]
[404762171,1770515440536,-500.0,0.00017808,2]
[404762172,1770515440544,-500.0,0.00017808,2]
[404762174,1770515440551,-500.0,0.00017808,2]
[404762176,1770515440558,-500.0,0.00017808,2]
[404762178,1770515440564,-565.74974744,0.00017808,2]
[404762179,1770515440572,-565.74974744,0.00017808,2]
[404762181,1770515440581,-565.74974744,0.00017808,2]
[404762182,1770515440602,-565.74974744,0.00017808,2]
[404762183,1770515440610,-565.74974744,0.00017808,2]
[404762184,1770515440617,-565.74974744,0.00017808,2]
[404762185,1770515440627,-565.74974744,0.00017808,2]
[404762186,1770515440635,-565.74974744,0.00017808,2]
[404762187,1770515440642,-565.74974744,0.00017808,2]
[404762188,1770515440650,-565.74974744,0.00017808,2]
[404762189,1770515440656,-565.74974744,0.00017808,2]
[404762190,1770515440663,-565.74974744,0.00017808,2]
[404762191,1770515440672,-559.46363914,0.00017808,2]
[404762192,1770515440680,-559.46363914,0.00017808,2]
[404762193,1770515440688,-559.46363914,0.00017808,2]
[404762194,1770515440694,-559.46363914,0.00017808,2]
[404762195,1770515440700,-559.46363914,0.00017808,2]
[404762196,1770515440707,-559.46363914,0.00017808,2]
[404762197,1770515440714,-559.46363914,0.00017808,2]
[404762198,1770515440722,-559.46363914,0.00017808,2]
[404762199,1770515440732,-559.46363914,0.00017808,2]
[404762200,1770515440741,-559.46363914,0.00017808,2]
[404762201,1770515440750,-559.46363914,0.00017808,2]
[404762202,1770515440759,-559.46363914,0.00017808,2]
[404762203,1770515440768,-559.46363914,0.00017808,2]
[404762204,1770515440778,-559.46363914,0.00017808,2]
[404762205,1770515440787,-559.46363914,0.00017808,2]
[404762206,1770515440797,-559.46363914,0.00017808,2]
[404762207,1770515440806,-559.46363914,0.00017808,2]
[404762208,1770515440815,-559.46363914,0.00017808,2]
[404762209,1770515440825,-559.46363914,0.00017808,2]
[404762210,1770515440835,-559.46363914,0.00017808,2]
[404762211,1770515440845,-559.46363914,0.00017808,2]
[404762212,1770515440855,-559.46363914,0.00017808,2]
[404762213,1770515440866,-559.46363914,0.00017808,2]
[404762214,1770515440876,-559.46363914,0.00017808,2]
[404762215,1770515440885,-559.46363914,0.00017808,2]
[404762216,1770515440896,-559.46363914,0.00017808,2]
[404762217,1770515440906,-559.46363914,0.00017808,2]
[404762218,1770515440916,-559.46363914,0.00017808,2]
[404762219,1770515440926,-559.46363914,0.00017808,2]
[404762220,1770515440935,-559.46363914,0.00017808,2]
[404762221,1770515440945,-559.46363914,0.00017808,2]
[404762222,1770515440954,-559.46363914,0.00017808,2]
[404762223,1770515440967,-559.46363914,0.00017808,2]
[404762224,1770515440977,-559.46363914,0.00017808,2]
[404762225,1770515440987,-559.46363914,0.00017808,2]
[404762226,1770515440996,-559.46363914,0.00017808,2]
[404762227,1770515441006,-559.46363914,0.00017808,2]
[404762228,1770515441017,-559.46363914,0.00017808,2]
[404762229,1770515441028,-559.46363914,0.00017808,2]
[404762230,1770515441039,-559.46363914,0.00017808,2]
[404762231,1770515441049,-559.46363914,0.00017808,2]
[404762232,1770515441058,-559.46363914,0.00017808,2]
[404762233,1770515441068,-559.46363914,0.00017808,2]
[404762234,1770515441077,-559.46363914,0.00017808,2]
[404762235,1770515441088,-559.46363914,0.00017808,2]
[404762236,1770515441098,-559.46363914,0.00017808,2]
[404762237,1770515441108,-559.46363914,0.00017808,2]
[404762238,1770515441118,-559.46363914,0.00017808,2]
[404762239,1770515441129,-559.46363914,0.00017808,2]
[404762240,1770515441139,-559.46363914,0.00017808,2]
[404762241,1770515441149,-559.46363914,0.00017808,2]
[404762242,1770515441162,-559.46363914,0.00017808,2]
[404762243,1770515441172,-559.46363914,0.00017808,2]
[404762244,1770515441182,-559.46363914,0.00017808,2]
[404762245,1770515441192,-559.46363914,0.00017808,2]
[404762246,1770515441202,-559.46363914,0.00017808,2]
[404762247,1770515441211,-559.46363914,0.00017808,2]
[404762248,1770515441222,-539.48279486,0.00017808,2]
[404762249,1770515441231,-539.48279486,0.00017808,2]
[404762250,1770515441241,-539.48279486,0.00017808,2]
[404762251,1770515441251,-539.48279486,0.00017808,2]
[404762252,1770515441263,-539.48279486,0.00017808,2]
[404762253,1770515441274,-539.48279486,0.00017808,2]
[404762254,1770515441283,-539.48279486,0.00017808,2]
[404762255,1770515441293,-539.48279486,0.00017808,2]
[404762256,1770515441305,-539.48279486,0.00017808,2]
[404762257,1770515441315,-539.48279486,0.00017808,2]
[404762258,1770515441324,-539.48279486,0.00017808,2]
[404762259,1770515441334,-539.48279486,0.00017808,2]
[404762260,1770515441343,-539.48279486,0.00017808,2]
[404762261,1770515441352,-539.48279486,0.00017808,2]
[404762262,1770515441367,-500.0,0.00018346,2]
[404762263,1770515441376,-7938.0,0.00018808,2]
[404762264,1770515441386,-5822.28780562,0.00018815,2]
[404762265,1770515441396,-7938.0,0.00018863,2]
[404762266,1770515441407,-2901.69108229,0.00018904,2]
[404762267,1770515441418,-7938.0,0.00018918,2]
[404762268,1770515441430,-7938.0,0.00018972,2]
[404762269,1770515441441,-7938.0,0.00019027,2]
[404762270,1770515441451,-7938.0,0.00019082,2]
[404762271,1770515441460,-9999.99,0.00019082,2]
[404762272,1770515441470,-150.99,0.00019082,2]
[404762273,1770515441479,-353.86,0.00019082,2]
[404762274,1770515441489,-200.23286085,0.00019082,2]
[404762275,1770515441498,-7938.0,0.00019137,2]
[404762276,1770515441509,-7938.0,0.00019192,2]
[404762277,1770515441518,-7938.0,0.00019246,2]
[404762278,1770515441528,-7938.0,0.00019301,2]
[404762279,1770515441538,-7938.0,0.00019356,2]
[404762280,1770515441549,-7938.0,0.00019411,2]
[404762281,1770515441562,-7938.0,0.00019466,2]
[404762282,1770515441572,-7938.0,0.0001952,2]
[404762283,1770515441583,-160.0,0.00019549,2]
[404762284,1770515441593,-7938.0,0.00019575,2]
[404762285,1770515441604,-7938.0,0.0001963,2]
[404762286,1770515441613,-7938.0,0.00019685,2]
[404762287,1770515441623,-7938.0,0.0001974,2]
[404762288,1770515441632,-7938.0,0.00019794,2]
[404762289,1770515441642,-7938.0,0.00019849,2]
[404762290,1770515441651,-7938.0,0.00019904,2]
[404762291,1770515441662,-7938.0,0.00019959,2]
[404762292,1770515441671,-7938.0,0.00020013,2]
[404762293,1770515441680,-7957.1094741,0.00020068,2]
[404762294,1770515441690,-159.12337747,0.00021531,2]
[404762295,1770515441699,-500.0,0.00021918,2]
[404762296,1770515441708,-500.0,0.00021918,2]
[404762297,1770515441718,-500.0,0.00021918,2]
[404762298,1770515441727,-369.17444929,0.00021918,2]
[404762299,1770515441737,-500.0,0.00021918,2]
[404762300,1770515441746,-500.0,0.00021918,2]
[404762301,1770515441759,-5822.28780562,0.0002193,2]
[404762302,1770515441769,-2901.69108229,0.00022008,2]
[404762303,1770515441778,-270.80046435,0.0002246,2]
[404762304,1770515441788,-340.43008438,0.0002246,2]
[404762305,1770515441799,-350.87,0.00023,7]
[404762306,1770515441808,-160.0,0.00023,2]
[404762307,1770515441817,-5822.28780562,0.00025045,2]
[404762308,1770515441827,-2901.69108229,0.00025112,2]
[404762309,1770515441836,-159.12337747,0.00027162,2]
[404762310,1770515441846,-150.0,0.00027369,2]
[404762311,1770515441855,-5822.28780562,0.0002816,2]
[404762312,1770515441865,-2901.69108229,0.00028216,2]
[404762313,1770515441874,-1000.0,0.0002871,2]
[404762314,1770515441884,-168.0,0.00029037,2]
[404762315,1770515441894,-168.0,0.0002939,2]
[404762316,1770515441904,-168.0,0.00029398,2]
[404762317,1770515441914,-168.0,0.00029507,2]
[404762318,1770515441923,-168.0,0.00029607,7]
[404762319,1770515441932,-168.0,0.00029673,2]
[404762320,1770515441942,-193.0,0.00029782,2]
[404762321,1770515441953,-168.0,0.00029829,2]
[404762322,1770515441963,-311.7457242,0.00029884,2]
[404762323,1770515441973,-168.0,0.00029925,2]
[404762324,1770515441983,-152.56,0.0003,2]
[404762325,1770515441992,-152.56,0.0003,2]
[404762326,1770515442002,-152.56,0.0003,2]
[404762327,1770515442013,-152.56,0.0003,2]
[404762328,1770515442022,-152.56,0.0003,2]
[404762329,1770515442032,-152.56,0.0003,2]
[404762330,1770515442042,-193.0,0.00030122,7]
[404762331,1770515442051,-168.0,0.00030315,2]
[404762332,1770515442061,-274.92,0.0003045,2]
[404762333,1770515442070,-193.0,0.00030458,2]
[404762334,1770515442080,-274.92,0.00030506,2]
[404762335,1770515442089,-193.0,0.00030554,2]
[404762336,1770515442099,-274.92,0.00030562,2]
[404762337,1770515442108,-193.0,0.00030588,2]
[404762338,1770515442118,-274.92,0.00030618,2]
[404762339,1770515442127,-168.0,0.00030621,2]
[404762340,1770515442137,-274.92,0.00030674,2]
[404762341,1770515442146,-274.92,0.0003073,2]
[404762342,1770515442156,-168.0,0.00030757,2]
[404762343,1770515442165,-168.0,0.00030771,2]
[404762344,1770515442175,-274.92,0.00030786,2]
[404762345,1770515442184,-274.92,0.00030842,2]
[404762346,1770515442451,-168.0,0.00030894,2]
[404762347,1770515442462,-274.92,0.00030898,2]
[404762348,1770515442474,-274.92,0.00030954,2]
[404762349,1770515442484,-274.92,0.0003101,2]
[404762350,1770515442494,-274.92,0.00031067,2]
[404762351,1770515442504,-274.92,0.00031123,2]
[404762352,1770515442513,-168.0,0.00031164,7]
[404762353,1770515442523,-274.92,0.00031179,2]
[404762354,1770515442532,-274.92,0.00031235,2]
[404762355,1770515442542,-5822.28780562,0.00031275,2]
[404762356,1770515442552,-274.92,0.00031291,2]
[404762357,1770515442562,-2901.69108229,0.00031319,2]
[404762358,1770515442571,-274.92,0.00031347,2]
[404762359,1770515442582,-274.92,0.00031403,2]
[404762360,1770515442593,-168.0,0.00031435,2]
[404762361,1770515442605,-166.66,0.00031453,2]
[404762362,1770515442614,-274.92,0.00031459,2]
[404762363,1770515442624,-193.0,0.00031473,7]
[404762364,1770515442634,-168.0,0.00031488,7]
[404762365,1770515442648,-274.92,0.00031515,2]
[404762366,1770515442658,-182.34249586,0.00032004,8]
[404762367,1770515442668,-166.66,0.00032492,2]
[404762368,1770515442678,-509.0,0.00032616,2]
[404762369,1770515442688,-159.12337747,0.00032793,2]
[404762370,1770515442699,-166.66,0.0003353,2]
[404762371,1770515442709,-13151.0,0.000336,14]
[404762372,1770515442718,-7179.0,0.000341,2]
[404762373,1770515442728,-179.75333325,0.00034132,2]
[404762374,1770515442737,-509.0,0.00034309,4]
[404762375,1770515442747,-2901.69108229,0.00034423,2]
[404762376,1770515442757,-166.66,0.00034568,2]
[404762377,1770515442767,-200.0,0.00034584,2]
[404762378,1770515442779,-5529.0,0.000347,3]
[404762379,1770515442789,-1000.0,0.00034737,20]
[404762380,1770515442799,-500.0,0.00034758,2]
[404762381,1770515442809,-1149.2536653,0.00034888,20]
[404762382,1770515442818,-1033.97290803,0.00034888,20]
[404762383,1770515442828,-1070.40249149,0.00034888,20]
[404762384,1770515442838,-1134.66020762,0.00034888,20]
[404762385,1770515442847,-1057.89888927,0.00034888,20]
[404762386,1770515442857,-1092.50589626,0.00034888,20]
[404762387,1770515442866,-1133.29875889,0.00034888,20]
[404762388,1770515442875,-937.4119843,0.00034888,20]
[404762389,1770515442885,-744.5,0.000349,2]
[404762390,1770515442896,-150.0,0.00034904,2]
[404762391,1770515442905,-350.87,0.00035,14]
[404762392,1770515442915,-3484.0,0.0003526,2]
[404762393,1770515442925,-619.42,0.0003526,2]
[404762394,1770515442935,-1342.45,0.0003526,2]
[404762395,1770515442944,-1550.434,0.0003526,2]
[404762396,1770515442954,-1280.184,0.0003526,2]
[404762397,1770515442963,-1213.662,0.0003526,2]
[404762398,1770515442972,-922.428,0.0003526,2]
[404762399,1770515442983,-250.0,0.0003526,2]
[404762400,1770515442992,-6585.0,0.0003526,2]
[404762401,1770515443002,-150.0,0.0003526,2]
[404762402,1770515443012,-150.158,0.0003526,2]
[404762403,1770515443028,-150.13,0.0003526,2]
[404762404,1770515443039,-3255.0,0.0003526,2]
[404762405,1770515443049,-150.0,0.0003526,2]
[404762406,1770515443058,-2447.0,0.0003526,2]
[404762407,1770515443067,-19488.34,0.0003527,2]
[404762408,1770515443077,-5529.0,0.000353,5]
[404762409,1770515443087,-179.75333325,0.00035481,2]
[404762410,1770515443096,-166.66,0.00035606,2]
[404762411,1770515443106,-1500.0,0.00035616,15]
[404762412,1770515443115,-1500.0,0.00035616,15]
[404762413,1770515443125,-2605.711302,0.00035616,15]
[404762414,1770515443135,-318.73126935,0.00035616,7]
[404762415,1770515443144,-13151.0,0.000357,14]
[404762416,1770515443154,-509.0,0.00036001,6]
[404762417,1770515443164,-166.66,0.00036645,2]
[404762418,1770515443173,-150.0,0.00036649,2]
[404762419,1770515443184,-179.75333325,0.0003683,2]
[404762420,1770515443193,-197.19613653,0.000372,120]
[404762421,1770515443204,-2901.69108229,0.00037527,2]
[404762422,1770515443215,-509.0,0.00037693,8]
[404762423,1770515443225,-179.75333325,0.00038179,2]
[404762424,1770515443235,-3484.0,0.0003826,2]
[404762425,1770515443246,-616.0,0.0003826,2]
[404762426,1770515443255,-1335.0,0.0003826,2]
[404762427,1770515443265,-1411.0,0.0003826,2]
[404762428,1770515443275,-1272.0,0.0003826,2]
[404762429,1770515443286,-1206.0,0.0003826,2]
[404762430,1770515443297,-917.0,0.0003826,2]
[404762431,1770515443307,-6585.0,0.0003826,2]
[404762432,1770515443317,-150.0,0.0003826,2]
[404762433,1770515443327,-150.0,0.0003826,2]
[404762434,1770515443337,-150.0,0.0003826,2]
[404762435,1770515443347,-3255.0,0.0003826,2]
[404762436,1770515443356,-150.0,0.0003826,2]
[404762439,1770515443366,-2447.0,0.0003826,2]
[404762441,1770515443375,-315.8512572,0.00038356,120]
[404762443,1770515443385,-159.12337747,0.00038424,2]
[404762445,1770515443395,-150.0,0.00038482,2]
[404762446,1770515443404,-175.15556915,0.00039192,30]
[404762448,1770515443415,-350.87,0.000392,14]
[404762449,1770515443424,-1076.774,0.0003926,54]
[404762450,1770515443434,-13151.0,0.000393,14]
[404762451,1770515443444,-509.0,0.00039386,10]
[404762452,1770515443453,-179.75333325,0.00039528,2]
[404762453,1770515443463,-175.0,0.00039616,2]
[404762454,1770515443472,-557.65442763,0.00039672,2]
[404762455,1770515443482,-300.0,0.00039751,2]
[404762456,1770515443492,-571.85515654,0.00039751,2]
[404762458,1770515443502,-300.0,0.00039751,2]
[404762460,1770515443512,-300.0,0.00039751,2]
[404762464,1770515443521,-300.0,0.00039751,2]
[404762469,1770515443531,-1078.26092173,0.00039751,2]
[404762471,1770515443541,-303.0,0.00039751,2]
[404762473,1770515443551,-852.9683247,0.00039751,2]
[404762475,1770515443561,-300.0,0.00039751,2]
[404762478,1770515443570,-305.12354707,0.00039751,2]
[404762480,1770515443586,-300.0,0.00039751,2]
[404762482,1770515443596,-881.67763408,0.00039751,2]
[404762484,1770515443605,-300.0,0.00039751,2]
[404762486,1770515443615,-300.0,0.00039751,2]
[404762487,1770515443625,-300.0,0.00039751,2]
[404762488,1770515443635,-300.0,0.00039751,2]
[404762489,1770515443645,-306.30098188,0.00039751,2]
[404762490,1770515443654,-300.0,0.00039751,2]
[404762491,1770515443664,-300.0,0.00039751,2]
[404762492,1770515443673,-457.33043133,0.00039751,2]
[404762493,1770515443684,-300.0,0.00039751,2]
[404762494,1770515443695,-300.0,0.00039751,2]
[404762495,1770515443705,-300.0,0.00039751,2]
[404762496,1770515443715,-370.2222184,0.00039751,2]
[404762497,1770515443726,-300.0,0.00039751,2]
[404762498,1770515443735,-300.0,0.00039751,2]
[404762499,1770515443744,-300.0,0.00039751,2]
[404762500,1770515443756,-300.0,0.00039751,2]
[404762501,1770515443775,-300.0,0.00039751,2]
[404762502,1770515443785,-300.0,0.00039751,2]
[404762503,1770515443794,-516.96458608,0.00039751,2]
[404762504,1770515443804,-305.27812549,0.00039751,2]
[404762505,1770515443813,-300.0,0.00039751,2]
[404762506,1770515443823,-300.0,0.00039751,2]
[404762507,1770515443832,-300.0,0.00039751,2]
[404762508,1770515443842,-300.0,0.00039751,2]
[404762509,1770515443851,-300.0,0.00039751,2]
[404762510,1770515443860,-572.03870209,0.00039751,2]
[404762511,1770515443870,-300.0,0.00039751,2]
[404762512,1770515443879,-300.0,0.00039751,2]
[404762513,1770515443889,-300.0,0.00039751,2]
[404762514,1770515443898,-1078.62288825,0.00039751,2]
[404762515,1770515443907,-300.1435796,0.00039751,2]
[404762516,1770515443917,-300.0,0.00039751,2]
[404762517,1770515443926,-852.9683247,0.00039751,2]
[404762518,1770515443936,-305.12354707,0.00039751,2]
[404762519,1770515443945,-300.0,0.00039751,2]
[404762520,1770515443955,-881.67763408,0.00039751,2]
[404762521,1770515443964,-300.0,0.00039751,2]
[404762522,1770515443976,-300.0,0.00039751,2]
[404762523,1770515443986,-300.0,0.00039751,2]
[404762524,1770515443996,-300.0,0.00039751,2]
[404762525,1770515444006,-306.30098188,0.00039751,2]
[404762526,1770515444017,-300.0,0.00039751,2]
[404762527,1770515444027,-300.0,0.00039751,2]
[404762528,1770515444037,-457.33043133,0.00039751,2]
[404762529,1770515444047,-300.0,0.00039751,2]
[404762530,1770515444056,-300.0,0.00039751,2]
[404762531,1770515444066,-300.0,0.00039751,2]
[404762532,1770515444075,-370.2222184,0.00039751,2]
[404762533,1770515444085,-300.0,0.00039751,2]
[404762534,1770515444095,-300.0,0.00039751,2]
[404762535,1770515444104,-300.0,0.00039751,2]
[404762536,1770515444113,-300.0,0.00039751,2]
[404762537,1770515444123,-300.0,0.00039751,2]
[404762538,1770515444132,-300.0,0.00039751,2]
[404762539,1770515444141,-516.96458608,0.00039751,2]
[404762540,1770515444151,-305.27812549,0.00039751,2]
[404762541,1770515444160,-300.0,0.00039751,2]
[404762542,1770515444169,-300.0,0.00039751,2]
[404762543,1770515444179,-300.0,0.00039751,2]
[404762544,1770515444188,-180.40359125,0.0004,2]
[404762545,1770515444197,-654.0,0.0004,120]
[404762546,1770515444206,-354.33,0.0004,120]
[404762547,1770515444216,-250.0,0.0004,45]
[404762548,1770515444225,-152.0,0.0004,120]
[404762549,1770515444235,-3966.0,0.0004,120]
[404762550,1770515444243,-153.0,0.0004,120]
[404762551,1770515444252,-162.0,0.0004,8]
[404762552,1770515444261,-25000.0,0.0004,30]
[404762553,1770515444271,-744.5,0.000401,30]
[404762554,1770515444280,-150.0,0.00040406,2]
[404762555,1770515444289,-260.43751861,0.00040454,5]
[404762556,1770515444299,-250.0,0.000405,45]
[404762557,1770515444308,-2901.69108229,0.00040631,15]
[404762558,1770515444317,-153.0,0.000408,120]
[404762559,1770515444327,-152.0,0.000409,120]
[404762560,1770515444336,-612.42715191,0.00041,30]
[404762561,1770515444346,-10000.0,0.00041,120]
[404762562,1770515444359,-160.0,0.00041,120]
[404762563,1770515444368,-13151.0,0.00041,14]
[404762564,1770515444378,-300.0,0.00041068,22]
[404762565,1770515444388,-509.0,0.00041078,12]
[404762566,1770515444397,-200.0,0.00041203,60]
[404762567,1770515444406,-207.4,0.00041203,60]
[404762568,1770515444415,-215.0738,0.00041203,60]
[404762569,1770515444425,-223.0315306,0.00041203,60]
[404762570,1770515444434,-231.28369723,0.00041203,60]
[404762571,1770515444443,-239.84119403,0.00041203,60]
[404762572,1770515444452,-248.71531821,0.00041203,60]
[404762573,1770515444461,-257.91778498,0.00041203,60]
[404762574,1770515444471,-267.46074303,0.00041203,60]
[404762575,1770515444480,-277.35679052,0.00041203,60]
[404762576,1770515444490,-287.61899177,0.00041203,60]
[404762577,1770515444500,-298.26089446,0.00041203,60]
[404762578,1770515444509,-309.29654756,0.00041203,60]
[404762579,1770515444519,-320.74051982,0.00041203,60]
[404762580,1770515444528,-332.60791905,0.00041203,60]
[404762582,1770515444538,-344.91441206,0.00041203,60]
[404762583,1770515444547,-357.6762453,0.00041203,60]
[404762584,1770515444556,-370.91026638,0.00041203,60]
[404762585,1770515444565,-384.63394623,0.00041203,60]
[404762586,1770515444575,-398.86540225,0.00041203,60]
[404762587,1770515444588,-218.977161,0.00041204,60]
[404762588,1770515444597,-153.78,0.00041204,30]
[404762589,1770515444607,-3484.0,0.0004126,2]
[404762590,1770515444616,-616.0,0.0004126,2]
[404762591,1770515444627,-1335.0,0.0004126,2]
[404762592,1770515444636,-1411.0,0.0004126,2]
[404762593,1770515444645,-1272.0,0.0004126,2]
[404762594,1770515444655,-1206.0,0.0004126,2]
[404762595,1770515444667,-917.0,0.0004126,2]
[404762596,1770515444676,-6585.0,0.0004126,2]
[404762597,1770515444686,-3255.0,0.0004126,2]
[404762598,1770515444695,-2447.0,0.0004126,2]
[404762599,1770515444704,-200.0,0.00041344,2]
[404762600,1770515444714,-200.0,0.00041344,2]
[404762601,1770515444723,-200.0,0.00041344,2]
[404762602,1770515444732,-200.0,0.00041344,2]
[404762603,1770515444741,-200.0,0.00041344,2]
[404762604,1770515444753,-200.0,0.00041344,2]
[404762605,1770515444762,-200.0,0.00041344,2]
[404762606,1770515444771,-200.0,0.00041344,2]
[404762607,1770515444780,-200.0,0.00041344,2]
[404762608,1770515444789,-200.0,0.00041344,2]
[404762609,1770515444799,-200.0,0.00041344,2]
[404762610,1770515444808,-200.0,0.00041344,2]
[404762611,1770515444818,-200.0,0.00041344,2]
[404762612,1770515444827,-200.0,0.00041344,2]
[404762613,1770515444837,-200.0,0.00041344,2]
[404762614,1770515444847,-200.0,0.00041344,2]
[404762615,1770515444856,-200.0,0.00041344,2]
[404762616,1770515444865,-200.0,0.00041344,2]
[404762617,1770515444874,-200.0,0.00041344,2]
[404762618,1770515444884,-200.0,0.00041344,2]
[404762619,1770515444893,-200.0,0.00041344,2]
[404762620,1770515444903,-200.0,0.00041344,2]
[404762621,1770515444912,-200.0,0.00041344,2]
[404762622,1770515444921,-200.0,0.00041344,2]
[404762623,1770515444931,-200.0,0.00041344,2]
[404762624,1770515444940,-200.0,0.00041344,2]
[404762625,1770515444950,-200.0,0.00041344,2]
[404762626,1770515444960,-200.0,0.00041344,2]
[404762627,1770515444980,-200.0,0.00041344,2]
[404762628,1770515444992,-200.0,0.00041344,2]
[404762629,1770515445002,-200.0,0.00041344,2]
[404762630,1770515445011,-200.0,0.00041344,2]
[404762631,1770515445020,-200.0,0.00041344,2]
[404762632,1770515445030,-200.0,0.00041344,2]
[404762633,1770515445039,-200.0,0.00041344,2]
[404762634,1770515445049,-200.0,0.00041344,2]
[404762635,1770515445058,-208.0,0.00041344,2]
[404762636,1770515445068,-171.06,0.00041427,120]
[404762637,1770515445077,-153.79740343,0.00041478,30]
[404762638,1770515445086,-350.87,0.000415,14]
[404762639,1770515445095,-153.0,0.000415,120]
[404762640,1770515445105,-171.07293598,0.00041527,120]
[404762641,1770515445115,-300.080949,0.00041787,108]
[404762642,1770515445126,-152.0,0.000419,120]
[404762643,1770515445136,-213.75126474,0.00042,2]
[404762644,1770515445146,-10000.0,0.00042,120]
[404762645,1770515445156,-2000.0,0.00042,7]
[404762646,1770515445167,-179.75333325,0.00042225,2]
[404762647,1770515445176,-153.0,0.000423,120]
[404762648,1770515445185,-150.0,0.00042426,120]
[404762649,1770515445195,-20000.0,0.00042466,120]
[404762650,1770515445204,-200.0,0.00042524,2]
[404762651,1770515445214,-500.0,0.00042537,60]
[404762652,1770515445224,-500.0,0.00042537,60]
[404762653,1770515445234,-500.0,0.00042537,60]
[404762654,1770515445243,-13151.0,0.000426,14]
[404762655,1770515445253,-2000.0,0.000427,7]
[404762656,1770515445264,-509.0,0.0004277,14]
[404762657,1770515445274,-152.0,0.000428,120]
[404762658,1770515445285,-53005.0,0.00042815,30]
[404762659,1770515445296,-278.82588179,0.00042819,7]
[404762660,1770515445308,-154.09482879,0.000429,120]
[404762661,1770515445318,-212.0,0.00043,30]
[404762662,1770515445327,-153.0,0.00043,120]
[404762663,1770515445337,-168.0,0.00043,90]
[404762664,1770515445346,-1000.0,0.00043014,30]
[404762665,1770515445356,-500.0,0.0004317,60]
[404762666,1770515445366,-504.68637928,0.0004317,60]
[404762667,1770515445377,-150.0,0.000432,120]
[404762668,1770515445387,-151.4213,0.0004322,7]
[404762669,1770515445397,-361.03622697,0.0004324,45]